{"text_format":"3","workbook":"xlsx","n_sheets":13,"sheets":["Tammikuu","Helmikuu","Maaliskuu","Huhtikuu","Toukokuu","Kesäkuu","Heinäkuu","Elokuu","Syyskuu","Lokakuu","Marraskuu","Joulukuu","Vuoden alusta -yhteenveto"],"not_rendered":{"charts":1,"defined_names":13},"read":"whole","date_system":"1900"}

{"sheet":"Tammikuu","index":0,"n_rows":9,"n_cols":14,"rows_kept":9,"merged":[[3,0,4,0],[6,0,7,0]]}
["TAMMIKUU"]
["Verkkomyynti",null,"Huutokauppa-\ntunnus","Nimikkeen kuvaus","Osto-\nhinta","Myynti-\nhinta","Verkko-\nmaksut","PayPal-\nmaksut","Luottokortti-\nmaksut","Rahti-\nmaksut","Rahtikulut","Myynnin\ntulos","Rahdin\ntulos","Tulos\nyhteensä"]
["Vuosi",null,"TS001","Nimike 1",{"v":5,"d":"€ 5.00"},{"v":4,"d":"€ 4.00"},{"v":2,"d":"€ 2.00"},{"v":1.5,"d":"€ 1.50"},{"v":0,"d":"€ 0.00"},{"v":4,"d":"€ 4.00"},{"v":2,"d":"€ 2.00"},{"$f":"IFERROR(JanuarySales[Myynti-\nhinta]-(JanuarySales[Osto-\nhinta]+JanuarySales[Verkko-\nmaksut]+JanuarySales[PayPal-\nmaksut]+JanuarySales[Luottokortti-\nmaksut]),\"\")","v":{"v":-4.5,"d":"(€ 4.50)"}},{"$f":"JanuarySales[Rahti-\nmaksut]-JanuarySales[Rahtikulut]","v":{"v":2,"d":"€ 2.00"}},{"$f":"JanuarySales[Myynnin\ntulos]+JanuarySales[Rahdin\ntulos]","v":{"v":-2.5,"d":"(€ 2.50)"}}]
[2012,null,"TP004","Nimike 2",{"v":2,"d":"€ 2.00"},{"v":30,"d":"€ 30.00"},{"v":0.5,"d":"€ 0.50"},{"v":0.5,"d":"€ 0.50"},null,{"v":4,"d":"€ 4.00"},{"v":5.5,"d":"€ 5.50"},{"$f":"IFERROR(JanuarySales[Myynti-\nhinta]-(JanuarySales[Osto-\nhinta]+JanuarySales[Verkko-\nmaksut]+JanuarySales[PayPal-\nmaksut]+JanuarySales[Luottokortti-\nmaksut]),\"\")","v":{"v":27,"d":"€ 27.00"}},{"$f":"JanuarySales[Rahti-\nmaksut]-JanuarySales[Rahtikulut]","v":{"v":-1.5,"d":"(€ 1.50)"}},{"$f":"JanuarySales[Myynnin\ntulos]+JanuarySales[Rahdin\ntulos]","v":{"v":25.5,"d":"€ 25.50"}}]
[null,null,"RS99","Nimike 3",{"v":17,"d":"€ 17.00"},{"v":23,"d":"€ 23.00"},{"v":2,"d":"€ 2.00"},null,{"v":2,"d":"€ 2.00"},{"v":3,"d":"€ 3.00"},{"v":2,"d":"€ 2.00"},{"$f":"IFERROR(JanuarySales[Myynti-\nhinta]-(JanuarySales[Osto-\nhinta]+JanuarySales[Verkko-\nmaksut]+JanuarySales[PayPal-\nmaksut]+JanuarySales[Luottokortti-\nmaksut]),\"\")","v":{"v":2,"d":"€ 2.00"}},{"$f":"JanuarySales[Rahti-\nmaksut]-JanuarySales[Rahtikulut]","v":{"v":1,"d":"€ 1.00"}},{"$f":"JanuarySales[Myynnin\ntulos]+JanuarySales[Rahdin\ntulos]","v":{"v":3,"d":"€ 3.00"}}]
["Tulos yhteensä",null,"ST001","Nimike 4",{"v":120,"d":"€ 120.00"},{"v":180,"d":"€ 180.00"},{"v":2,"d":"€ 2.00"},{"v":1.5,"d":"€ 1.50"},null,{"v":3,"d":"€ 3.00"},{"v":2,"d":"€ 2.00"},{"$f":"IFERROR(JanuarySales[Myynti-\nhinta]-(JanuarySales[Osto-\nhinta]+JanuarySales[Verkko-\nmaksut]+JanuarySales[PayPal-\nmaksut]+JanuarySales[Luottokortti-\nmaksut]),\"\")","v":{"v":56.5,"d":"€ 56.50"}},{"$f":"JanuarySales[Rahti-\nmaksut]-JanuarySales[Rahtikulut]","v":{"v":1,"d":"€ 1.00"}},{"$f":"JanuarySales[Myynnin\ntulos]+JanuarySales[Rahdin\ntulos]","v":{"v":57.5,"d":"€ 57.50"}}]
[{"$f":"JanuarySales[[#Totals],[Tulos\nyhteensä]]","v":{"v":89,"d":"€89.00"}},null,"ST001","Nimike 5",{"v":10,"d":"€ 10.00"},{"v":12,"d":"€ 12.00"},{"v":2,"d":"€ 2.00"},{"v":1.5,"d":"€ 1.50"},null,{"v":14,"d":"€ 14.00"},{"v":7,"d":"€ 7.00"},{"$f":"IFERROR(JanuarySales[Myynti-\nhinta]-(JanuarySales[Osto-\nhinta]+JanuarySales[Verkko-\nmaksut]+JanuarySales[PayPal-\nmaksut]+JanuarySales[Luottokortti-\nmaksut]),\"\")","v":{"v":-1.5,"d":"(€ 1.50)"}},{"$f":"JanuarySales[Rahti-\nmaksut]-JanuarySales[Rahtikulut]","v":{"v":7,"d":"€ 7.00"}},{"$f":"JanuarySales[Myynnin\ntulos]+JanuarySales[Rahdin\ntulos]","v":{"v":5.5,"d":"€ 5.50"}}]
[null,null," Yhteensä",{"$f":"\"Myydyt nimikkeet: \"&SUBTOTAL(103,JanuarySales[Nimikkeen kuvaus])","v":"Myydyt nimikkeet: 5"},{"$f":"SUBTOTAL(109,JanuarySales[Osto-\nhinta])","v":{"v":154,"d":"€ 154.00"}},{"$f":"SUBTOTAL(109,JanuarySales[Myynti-\nhinta])","v":{"v":249,"d":"€ 249.00"}},{"$f":"SUBTOTAL(109,JanuarySales[Verkko-\nmaksut])","v":{"v":8.5,"d":"€ 8.50"}},{"$f":"SUBTOTAL(109,JanuarySales[PayPal-\nmaksut])","v":{"v":5,"d":"€ 5.00"}},{"$f":"SUBTOTAL(109,JanuarySales[Luottokortti-\nmaksut])","v":{"v":2,"d":"€ 2.00"}},{"$f":"SUBTOTAL(109,JanuarySales[Rahti-\nmaksut])","v":{"v":28,"d":"€ 28.00"}},{"$f":"SUBTOTAL(109,JanuarySales[Rahtikulut])","v":{"v":18.5,"d":"€ 18.50"}},{"$f":"SUBTOTAL(109,JanuarySales[Myynnin\ntulos])","v":{"v":79.5,"d":"€ 79.50"}},{"$f":"SUBTOTAL(109,JanuarySales[Rahdin\ntulos])","v":{"v":9.5,"d":"€ 9.50"}},{"$f":"SUBTOTAL(109,JanuarySales[Tulos\nyhteensä])","v":{"v":89,"d":"€ 89.00"}}]
["Tulossuuntaus"]

{"sheet":"Helmikuu","index":1,"n_rows":9,"n_cols":14,"rows_kept":9,"merged":[[3,0,4,0],[6,0,7,0]]}
["HELMIKUU"]
["Verkkomyynti",null,"uutokauppa-\ntunnus","Nimikkeen","Osto-\nhinta","Myyntihinta","Verkkomaksut","PayPal-\nmaksut","Luottokortti-\nmaksut","Rahti-\nmaksut","Rahti-\nmaksut2","Myynnin\ntulos","Rahdin\ntulos","Tulos\nyhteensä"]
["Vuosi",null,"TS020","Nimike 1",{"v":10,"d":"€ 10.00"},{"v":175,"d":"€ 175.00"},{"v":3,"d":"€ 3.00"},{"v":1.5,"d":"€ 1.50"},{"v":0,"d":"€ 0.00"},{"v":7,"d":"€ 7.00"},{"v":5,"d":"€ 5.00"},{"$f":"IFERROR(FebruarySales[Myyntihinta]-(FebruarySales[Osto-\nhinta]+FebruarySales[Verkkomaksut]+FebruarySales[PayPal-\nmaksut]+FebruarySales[Luottokortti-\nmaksut]),\"\")","v":{"v":160.5,"d":"€ 160.50"}},{"$f":"FebruarySales[Rahti-\nmaksut]-FebruarySales[Rahti-\nmaksut2]","v":{"v":2,"d":"€ 2.00"}},{"$f":"FebruarySales[Myynnin\ntulos]+FebruarySales[Rahdin\ntulos]","v":{"v":162.5,"d":"€ 162.50"}}]
[2012,null,"TS021","Nimike 2",{"v":32,"d":"€ 32.00"},{"v":100,"d":"€ 100.00"},{"v":3,"d":"€ 3.00"},null,{"v":3.2,"d":"€ 3.20"},{"v":20,"d":"€ 20.00"},{"v":13,"d":"€ 13.00"},{"$f":"IFERROR(FebruarySales[Myyntihinta]-(FebruarySales[Osto-\nhinta]+FebruarySales[Verkkomaksut]+FebruarySales[PayPal-\nmaksut]+FebruarySales[Luottokortti-\nmaksut]),\"\")","v":{"v":61.8,"d":"€ 61.80"}},{"$f":"FebruarySales[Rahti-\nmaksut]-FebruarySales[Rahti-\nmaksut2]","v":{"v":7,"d":"€ 7.00"}},{"$f":"FebruarySales[Myynnin\ntulos]+FebruarySales[Rahdin\ntulos]","v":{"v":68.8,"d":"€ 68.80"}}]
[null,null,"TS022","Nimike 3",{"v":3,"d":"€ 3.00"},{"v":7,"d":"€ 7.00"},{"v":2,"d":"€ 2.00"},null,{"v":2,"d":"€ 2.00"},{"v":0.5,"d":"€ 0.50"},{"v":1.2,"d":"€ 1.20"},{"$f":"IFERROR(FebruarySales[Myyntihinta]-(FebruarySales[Osto-\nhinta]+FebruarySales[Verkkomaksut]+FebruarySales[PayPal-\nmaksut]+FebruarySales[Luottokortti-\nmaksut]),\"\")","v":{"v":0,"d":"€ 0.00"}},{"$f":"FebruarySales[Rahti-\nmaksut]-FebruarySales[Rahti-\nmaksut2]","v":{"v":-0.7,"d":"(€ 0.70)"}},{"$f":"FebruarySales[Myynnin\ntulos]+FebruarySales[Rahdin\ntulos]","v":{"v":-0.7,"d":"(€ 0.70)"}}]
["Tulos yhteensä",null,"TS023","Nimike 4",{"v":22,"d":"€ 22.00"},{"v":18,"d":"€ 18.00"},{"v":3,"d":"€ 3.00"},{"v":1.5,"d":"€ 1.50"},null,{"v":7,"d":"€ 7.00"},{"v":10,"d":"€ 10.00"},{"$f":"IFERROR(FebruarySales[Myyntihinta]-(FebruarySales[Osto-\nhinta]+FebruarySales[Verkkomaksut]+FebruarySales[PayPal-\nmaksut]+FebruarySales[Luottokortti-\nmaksut]),\"\")","v":{"v":-8.5,"d":"(€ 8.50)"}},{"$f":"FebruarySales[Rahti-\nmaksut]-FebruarySales[Rahti-\nmaksut2]","v":{"v":-3,"d":"(€ 3.00)"}},{"$f":"FebruarySales[Myynnin\ntulos]+FebruarySales[Rahdin\ntulos]","v":{"v":-11.5,"d":"(€ 11.50)"}}]
[{"$f":"FebruarySales[[#Totals],[Tulos\nyhteensä]]","v":{"v":224.60000000000002,"d":"€224.60"}},null,"TS024","Nimike 5",{"v":10,"d":"€ 10.00"},{"v":12,"d":"€ 12.00"},{"v":2,"d":"€ 2.00"},{"v":1.5,"d":"€ 1.50"},null,{"v":14,"d":"€ 14.00"},{"v":7,"d":"€ 7.00"},{"$f":"IFERROR(FebruarySales[Myyntihinta]-(FebruarySales[Osto-\nhinta]+FebruarySales[Verkkomaksut]+FebruarySales[PayPal-\nmaksut]+FebruarySales[Luottokortti-\nmaksut]),\"\")","v":{"v":-1.5,"d":"(€ 1.50)"}},{"$f":"FebruarySales[Rahti-\nmaksut]-FebruarySales[Rahti-\nmaksut2]","v":{"v":7,"d":"€ 7.00"}},{"$f":"FebruarySales[Myynnin\ntulos]+FebruarySales[Rahdin\ntulos]","v":{"v":5.5,"d":"€ 5.50"}}]
[null,null,"  Yhteensä",{"$f":"\"Myydyt nimikkeet: \"&SUBTOTAL(103,FebruarySales[Nimikkeen])","v":"Myydyt nimikkeet: 5"},{"$f":"SUBTOTAL(109,FebruarySales[Osto-\nhinta])","v":{"v":77,"d":"€ 77.00"}},{"$f":"SUBTOTAL(109,FebruarySales[Myyntihinta])","v":{"v":312,"d":"€ 312.00"}},{"$f":"SUBTOTAL(109,FebruarySales[Verkkomaksut])","v":{"v":13,"d":"€ 13.00"}},{"$f":"SUBTOTAL(109,FebruarySales[PayPal-\nmaksut])","v":{"v":4.5,"d":"€ 4.50"}},{"$f":"SUBTOTAL(109,FebruarySales[Luottokortti-\nmaksut])","v":{"v":5.2,"d":"€ 5.20"}},{"$f":"SUBTOTAL(109,FebruarySales[Rahti-\nmaksut])","v":{"v":48.5,"d":"€ 48.50"}},{"$f":"SUBTOTAL(109,FebruarySales[Rahti-\nmaksut2])","v":{"v":36.2,"d":"€ 36.20"}},{"$f":"SUBTOTAL(109,FebruarySales[Myynnin\ntulos])","v":{"v":212.3,"d":"€ 212.30"}},{"$f":"SUBTOTAL(109,FebruarySales[Rahdin\ntulos])","v":{"v":12.3,"d":"€ 12.30"}},{"$f":"SUBTOTAL(109,FebruarySales[Tulos\nyhteensä])","v":{"v":224.60000000000002,"d":"€ 224.60"}}]
["Tulossuuntaus"]

{"sheet":"Maaliskuu","index":2,"n_rows":9,"n_cols":14,"rows_kept":9,"merged":[[3,0,4,0],[6,0,7,0]]}
["MAALISKUU"]
["Verkkomyynti",null,"uutokauppa-\ntunnus","Nimikkeen","Osto-\nhinta","Myyntihinta","Verkkomaksut","PayPal-\nmaksut","Luottokortti-\nmaksut","Rahti-\nmaksut","Rahti-\nmaksut2","Myynnin\ntulos","Rahdin\ntulos","Tulos\nyhteensä"]
["Vuosi",{"$nulls":10},{"$f":"IFERROR(MarchSales[Myyntihinta]-(MarchSales[Osto-\nhinta]+MarchSales[Verkkomaksut]+MarchSales[PayPal-\nmaksut]+MarchSales[Luottokortti-\nmaksut]),\"\")","v":{"v":0,"d":"€ 0.00"}},{"$f":"MarchSales[Rahti-\nmaksut]-MarchSales[Rahti-\nmaksut2]","v":{"v":0,"d":"€ 0.00"}},{"$f":"MarchSales[Myynnin\ntulos]+MarchSales[Rahdin\ntulos]","v":{"v":0,"d":"€ 0.00"}}]
[2012,{"$nulls":10},{"$f":"IFERROR(MarchSales[Myyntihinta]-(MarchSales[Osto-\nhinta]+MarchSales[Verkkomaksut]+MarchSales[PayPal-\nmaksut]+MarchSales[Luottokortti-\nmaksut]),\"\")","v":{"v":0,"d":"€ 0.00"}},{"$f":"MarchSales[Rahti-\nmaksut]-MarchSales[Rahti-\nmaksut2]","v":{"v":0,"d":"€ 0.00"}},{"$f":"MarchSales[Myynnin\ntulos]+MarchSales[Rahdin\ntulos]","v":{"v":0,"d":"€ 0.00"}}]
[{"$nulls":11},{"$f":"IFERROR(MarchSales[Myyntihinta]-(MarchSales[Osto-\nhinta]+MarchSales[Verkkomaksut]+MarchSales[PayPal-\nmaksut]+MarchSales[Luottokortti-\nmaksut]),\"\")","v":{"v":0,"d":"€ 0.00"}},{"$f":"MarchSales[Rahti-\nmaksut]-MarchSales[Rahti-\nmaksut2]","v":{"v":0,"d":"€ 0.00"}},{"$f":"MarchSales[Myynnin\ntulos]+MarchSales[Rahdin\ntulos]","v":{"v":0,"d":"€ 0.00"}}]
["Tulos yhteensä",{"$nulls":10},{"$f":"IFERROR(MarchSales[Myyntihinta]-(MarchSales[Osto-\nhinta]+MarchSales[Verkkomaksut]+MarchSales[PayPal-\nmaksut]+MarchSales[Luottokortti-\nmaksut]),\"\")","v":{"v":0,"d":"€ 0.00"}},{"$f":"MarchSales[Rahti-\nmaksut]-MarchSales[Rahti-\nmaksut2]","v":{"v":0,"d":"€ 0.00"}},{"$f":"MarchSales[Myynnin\ntulos]+MarchSales[Rahdin\ntulos]","v":{"v":0,"d":"€ 0.00"}}]
[{"$f":"MarchSales[[#Totals],[Tulos\nyhteensä]]","v":{"v":0,"d":"€0.00"}},{"$nulls":10},{"$f":"IFERROR(MarchSales[Myyntihinta]-(MarchSales[Osto-\nhinta]+MarchSales[Verkkomaksut]+MarchSales[PayPal-\nmaksut]+MarchSales[Luottokortti-\nmaksut]),\"\")","v":{"v":0,"d":"€ 0.00"}},{"$f":"MarchSales[Rahti-\nmaksut]-MarchSales[Rahti-\nmaksut2]","v":{"v":0,"d":"€ 0.00"}},{"$f":"MarchSales[Myynnin\ntulos]+MarchSales[Rahdin\ntulos]","v":{"v":0,"d":"€ 0.00"}}]
[null,null,"  Yhteensä",{"$f":"\"Myydyt nimikkeet: \"&SUBTOTAL(103,MarchSales[Nimikkeen])","v":"Myydyt nimikkeet: 0"},{"$f":"SUBTOTAL(109,MarchSales[Osto-\nhinta])","v":{"v":0,"d":"€ 0.00"}},{"$f":"SUBTOTAL(109,MarchSales[Myyntihinta])","v":{"v":0,"d":"€ 0.00"}},{"$f":"SUBTOTAL(109,MarchSales[Verkkomaksut])","v":{"v":0,"d":"€ 0.00"}},{"$f":"SUBTOTAL(109,MarchSales[PayPal-\nmaksut])","v":{"v":0,"d":"€ 0.00"}},{"$f":"SUBTOTAL(109,MarchSales[Luottokortti-\nmaksut])","v":{"v":0,"d":"€ 0.00"}},{"$f":"SUBTOTAL(109,MarchSales[Rahti-\nmaksut])","v":{"v":0,"d":"€ 0.00"}},{"$f":"SUBTOTAL(109,MarchSales[Rahti-\nmaksut2])","v":{"v":0,"d":"€ 0.00"}},{"$f":"SUBTOTAL(109,MarchSales[Myynnin\ntulos])","v":{"v":0,"d":"€ 0.00"}},{"$f":"SUBTOTAL(109,MarchSales[Rahdin\ntulos])","v":{"v":0,"d":"€ 0.00"}},{"$f":"SUBTOTAL(109,MarchSales[Tulos\nyhteensä])","v":{"v":0,"d":"€ 0.00"}}]
["Tulossuuntaus"]

{"sheet":"Huhtikuu","index":3,"n_rows":9,"n_cols":14,"rows_kept":9,"merged":[[3,0,4,0],[6,0,7,0]]}
["HUHTIKUU"]
["Verkkomyynti",null,"uutokauppa-\ntunnus","Nimikkeen","Osto-\nhinta","Myyntihinta","Verkkomaksut","PayPal-\nmaksut","Luottokortti-\nmaksut","Rahti-\nmaksut","Rahti-\nmaksut2","Myynnin\ntulos","Rahdin\ntulos","Tulos\nyhteensä"]
["Vuosi",{"$nulls":11},{"$f":"AprilSales[Rahti-\nmaksut]-AprilSales[Rahti-\nmaksut2]","v":{"v":0,"d":"€ 0.00"}},{"$f":"AprilSales[Myynnin\ntulos]+AprilSales[Rahdin\ntulos]","v":{"v":0,"d":"€ 0.00"}}]
[2012,{"$nulls":11},{"$f":"AprilSales[Rahti-\nmaksut]-AprilSales[Rahti-\nmaksut2]","v":{"v":0,"d":"€ 0.00"}},{"$f":"AprilSales[Myynnin\ntulos]+AprilSales[Rahdin\ntulos]","v":{"v":0,"d":"€ 0.00"}}]
[{"$nulls":12},{"$f":"AprilSales[Rahti-\nmaksut]-AprilSales[Rahti-\nmaksut2]","v":{"v":0,"d":"€ 0.00"}},{"$f":"AprilSales[Myynnin\ntulos]+AprilSales[Rahdin\ntulos]","v":{"v":0,"d":"€ 0.00"}}]
["Tulos yhteensä",{"$nulls":11},{"$f":"AprilSales[Rahti-\nmaksut]-AprilSales[Rahti-\nmaksut2]","v":{"v":0,"d":"€ 0.00"}},{"$f":"AprilSales[Myynnin\ntulos]+AprilSales[Rahdin\ntulos]","v":{"v":0,"d":"€ 0.00"}}]
[{"$f":"AprilSales[[#Totals],[Tulos\nyhteensä]]","v":{"v":0,"d":"€0.00"}},{"$nulls":11},{"$f":"AprilSales[Rahti-\nmaksut]-AprilSales[Rahti-\nmaksut2]","v":{"v":0,"d":"€ 0.00"}},{"$f":"AprilSales[Myynnin\ntulos]+AprilSales[Rahdin\ntulos]","v":{"v":0,"d":"€ 0.00"}}]
[null,null,"  Yhteensä",{"$f":"\"Myydyt nimikkeet: \"&SUBTOTAL(103,AprilSales[Nimikkeen])","v":"Myydyt nimikkeet: 0"},{"$f":"SUBTOTAL(109,AprilSales[Osto-\nhinta])","v":{"v":0,"d":"€ 0.00"}},{"$f":"SUBTOTAL(109,AprilSales[Myyntihinta])","v":{"v":0,"d":"€ 0.00"}},{"$f":"SUBTOTAL(109,AprilSales[Verkkomaksut])","v":{"v":0,"d":"€ 0.00"}},{"$f":"SUBTOTAL(109,AprilSales[PayPal-\nmaksut])","v":{"v":0,"d":"€ 0.00"}},{"$f":"SUBTOTAL(109,AprilSales[Luottokortti-\nmaksut])","v":{"v":0,"d":"€ 0.00"}},{"$f":"SUBTOTAL(109,AprilSales[Rahti-\nmaksut])","v":{"v":0,"d":"€ 0.00"}},{"$f":"SUBTOTAL(109,AprilSales[Rahti-\nmaksut2])","v":{"v":0,"d":"€ 0.00"}},{"$f":"SUBTOTAL(109,AprilSales[Myynnin\ntulos])","v":{"v":0,"d":"€ 0.00"}},{"$f":"SUBTOTAL(109,AprilSales[Rahdin\ntulos])","v":{"v":0,"d":"€ 0.00"}},{"$f":"SUBTOTAL(109,AprilSales[Tulos\nyhteensä])","v":{"v":0,"d":"€ 0.00"}}]
["Tulossuuntaus"]

{"sheet":"Toukokuu","index":4,"n_rows":9,"n_cols":14,"rows_kept":9,"merged":[[3,0,4,0],[6,0,7,0]]}
["TOUKOKUU"]
["Verkkomyynti",null,"uutokauppa-\ntunnus","Nimikkeen","Osto-\nhinta","Myyntihinta","Verkkomaksut","PayPal-\nmaksut","Luottokortti-\nmaksut","Rahti-\nmaksut","Rahti-\nmaksut2","Myynnin\ntulos","Rahdin\ntulos","Tulos\nyhteensä"]
["Vuosi",{"$nulls":11},{"$f":"MaySales[Rahti-\nmaksut]-MaySales[Rahti-\nmaksut2]","v":{"v":0,"d":"€ 0.00"}},{"$f":"MaySales[Myynnin\ntulos]+MaySales[Rahdin\ntulos]","v":{"v":0,"d":"€ 0.00"}}]
[2012,{"$nulls":11},{"$f":"MaySales[Rahti-\nmaksut]-MaySales[Rahti-\nmaksut2]","v":{"v":0,"d":"€ 0.00"}},{"$f":"MaySales[Myynnin\ntulos]+MaySales[Rahdin\ntulos]","v":{"v":0,"d":"€ 0.00"}}]
[{"$nulls":12},{"$f":"MaySales[Rahti-\nmaksut]-MaySales[Rahti-\nmaksut2]","v":{"v":0,"d":"€ 0.00"}},{"$f":"MaySales[Myynnin\ntulos]+MaySales[Rahdin\ntulos]","v":{"v":0,"d":"€ 0.00"}}]
["Tulos yhteensä",{"$nulls":11},{"$f":"MaySales[Rahti-\nmaksut]-MaySales[Rahti-\nmaksut2]","v":{"v":0,"d":"€ 0.00"}},{"$f":"MaySales[Myynnin\ntulos]+MaySales[Rahdin\ntulos]","v":{"v":0,"d":"€ 0.00"}}]
[{"$f":"MaySales[[#Totals],[Tulos\nyhteensä]]","v":{"v":0,"d":"€0.00"}},{"$nulls":11},{"$f":"MaySales[Rahti-\nmaksut]-MaySales[Rahti-\nmaksut2]","v":{"v":0,"d":"€ 0.00"}},{"$f":"MaySales[Myynnin\ntulos]+MaySales[Rahdin\ntulos]","v":{"v":0,"d":"€ 0.00"}}]
[null,null,"  Yhteensä",{"$f":"\"Myydyt nimikkeet: \"&SUBTOTAL(103,MaySales[Nimikkeen])","v":"Myydyt nimikkeet: 0"},{"$f":"SUBTOTAL(109,MaySales[Osto-\nhinta])","v":{"v":0,"d":"€ 0.00"}},{"$f":"SUBTOTAL(109,MaySales[Myyntihinta])","v":{"v":0,"d":"€ 0.00"}},{"$f":"SUBTOTAL(109,MaySales[Verkkomaksut])","v":{"v":0,"d":"€ 0.00"}},{"$f":"SUBTOTAL(109,MaySales[PayPal-\nmaksut])","v":{"v":0,"d":"€ 0.00"}},{"$f":"SUBTOTAL(109,MaySales[Luottokortti-\nmaksut])","v":{"v":0,"d":"€ 0.00"}},{"$f":"SUBTOTAL(109,MaySales[Rahti-\nmaksut])","v":{"v":0,"d":"€ 0.00"}},{"$f":"SUBTOTAL(109,MaySales[Rahti-\nmaksut2])","v":{"v":0,"d":"€ 0.00"}},{"$f":"SUBTOTAL(109,MaySales[Myynnin\ntulos])","v":{"v":0,"d":"€ 0.00"}},{"$f":"SUBTOTAL(109,MaySales[Rahdin\ntulos])","v":{"v":0,"d":"€ 0.00"}},{"$f":"SUBTOTAL(109,MaySales[Tulos\nyhteensä])","v":{"v":0,"d":"€ 0.00"}}]
["Tulossuuntaus"]

{"sheet":"Kesäkuu","index":5,"n_rows":9,"n_cols":14,"rows_kept":9,"merged":[[3,0,4,0],[6,0,7,0]]}
["KESÄKUU"]
["Verkkomyynti",null,"uutokauppa-\ntunnus","Nimikkeen","Osto-\nhinta","Myyntihinta","Verkkomaksut","PayPal-\nmaksut","Luottokortti-\nmaksut","Rahti-\nmaksut","Rahti-\nmaksut2","Myynnin\ntulos","Rahdin\ntulos","Tulos\nyhteensä"]
["Vuosi",{"$nulls":11},{"$f":"JuneSales[Rahti-\nmaksut]-JuneSales[Rahti-\nmaksut2]","v":{"v":0,"d":"€ 0.00"}},{"$f":"JuneSales[Myynnin\ntulos]+JuneSales[Rahdin\ntulos]","v":{"v":0,"d":"€ 0.00"}}]
[2012,{"$nulls":11},{"$f":"JuneSales[Rahti-\nmaksut]-JuneSales[Rahti-\nmaksut2]","v":{"v":0,"d":"€ 0.00"}},{"$f":"JuneSales[Myynnin\ntulos]+JuneSales[Rahdin\ntulos]","v":{"v":0,"d":"€ 0.00"}}]
[{"$nulls":12},{"$f":"JuneSales[Rahti-\nmaksut]-JuneSales[Rahti-\nmaksut2]","v":{"v":0,"d":"€ 0.00"}},{"$f":"JuneSales[Myynnin\ntulos]+JuneSales[Rahdin\ntulos]","v":{"v":0,"d":"€ 0.00"}}]
["Tulos yhteensä",{"$nulls":11},{"$f":"JuneSales[Rahti-\nmaksut]-JuneSales[Rahti-\nmaksut2]","v":{"v":0,"d":"€ 0.00"}},{"$f":"JuneSales[Myynnin\ntulos]+JuneSales[Rahdin\ntulos]","v":{"v":0,"d":"€ 0.00"}}]
[{"$f":"JuneSales[[#Totals],[Tulos\nyhteensä]]","v":{"v":0,"d":"€0.00"}},{"$nulls":11},{"$f":"JuneSales[Rahti-\nmaksut]-JuneSales[Rahti-\nmaksut2]","v":{"v":0,"d":"€ 0.00"}},{"$f":"JuneSales[Myynnin\ntulos]+JuneSales[Rahdin\ntulos]","v":{"v":0,"d":"€ 0.00"}}]
[null,null,"  Yhteensä",{"$f":"\"Myydyt nimikkeet: \"&SUBTOTAL(103,JuneSales[Nimikkeen])","v":"Myydyt nimikkeet: 0"},{"$f":"SUBTOTAL(109,JuneSales[Osto-\nhinta])","v":{"v":0,"d":"€ 0.00"}},{"$f":"SUBTOTAL(109,JuneSales[Myyntihinta])","v":{"v":0,"d":"€ 0.00"}},{"$f":"SUBTOTAL(109,JuneSales[Verkkomaksut])","v":{"v":0,"d":"€ 0.00"}},{"$f":"SUBTOTAL(109,JuneSales[PayPal-\nmaksut])","v":{"v":0,"d":"€ 0.00"}},{"$f":"SUBTOTAL(109,JuneSales[Luottokortti-\nmaksut])","v":{"v":0,"d":"€ 0.00"}},{"$f":"SUBTOTAL(109,JuneSales[Rahti-\nmaksut])","v":{"v":0,"d":"€ 0.00"}},{"$f":"SUBTOTAL(109,JuneSales[Rahti-\nmaksut2])","v":{"v":0,"d":"€ 0.00"}},{"$f":"SUBTOTAL(109,JuneSales[Myynnin\ntulos])","v":{"v":0,"d":"€ 0.00"}},{"$f":"SUBTOTAL(109,JuneSales[Rahdin\ntulos])","v":{"v":0,"d":"€ 0.00"}},{"$f":"SUBTOTAL(109,JuneSales[Tulos\nyhteensä])","v":{"v":0,"d":"€ 0.00"}}]
["Tulossuuntaus"]

{"sheet":"Heinäkuu","index":6,"n_rows":9,"n_cols":14,"rows_kept":9,"merged":[[3,0,4,0],[6,0,7,0]]}
["HEINÄKUU"]
["Verkkomyynti",null,"uutokauppa-\ntunnus","Nimikkeen","Osto-\nhinta","Myyntihinta","Verkkomaksut","PayPal-\nmaksut","Luottokortti-\nmaksut","Rahti-\nmaksut","Rahti-\nmaksut2","Myynnin\ntulos","Rahdin\ntulos","Tulos\nyhteensä"]
["Vuosi",{"$nulls":11},{"$f":"JulySales[Rahti-\nmaksut]-JulySales[Rahti-\nmaksut2]","v":{"v":0,"d":"€ 0.00"}},{"$f":"JulySales[Myynnin\ntulos]+JulySales[Rahdin\ntulos]","v":{"v":0,"d":"€ 0.00"}}]
[2012,{"$nulls":11},{"$f":"JulySales[Rahti-\nmaksut]-JulySales[Rahti-\nmaksut2]","v":{"v":0,"d":"€ 0.00"}},{"$f":"JulySales[Myynnin\ntulos]+JulySales[Rahdin\ntulos]","v":{"v":0,"d":"€ 0.00"}}]
[{"$nulls":12},{"$f":"JulySales[Rahti-\nmaksut]-JulySales[Rahti-\nmaksut2]","v":{"v":0,"d":"€ 0.00"}},{"$f":"JulySales[Myynnin\ntulos]+JulySales[Rahdin\ntulos]","v":{"v":0,"d":"€ 0.00"}}]
["Tulos yhteensä",{"$nulls":11},{"$f":"JulySales[Rahti-\nmaksut]-JulySales[Rahti-\nmaksut2]","v":{"v":0,"d":"€ 0.00"}},{"$f":"JulySales[Myynnin\ntulos]+JulySales[Rahdin\ntulos]","v":{"v":0,"d":"€ 0.00"}}]
[{"$f":"JulySales[[#Totals],[Tulos\nyhteensä]]","v":{"v":0,"d":"€0.00"}},{"$nulls":11},{"$f":"JulySales[Rahti-\nmaksut]-JulySales[Rahti-\nmaksut2]","v":{"v":0,"d":"€ 0.00"}},{"$f":"JulySales[Myynnin\ntulos]+JulySales[Rahdin\ntulos]","v":{"v":0,"d":"€ 0.00"}}]
[null,null,"  Yhteensä",{"$f":"\"Myydyt nimikkeet: \"&SUBTOTAL(103,JulySales[Nimikkeen])","v":"Myydyt nimikkeet: 0"},{"$f":"SUBTOTAL(109,JulySales[Osto-\nhinta])","v":{"v":0,"d":"€ 0.00"}},{"$f":"SUBTOTAL(109,JulySales[Myyntihinta])","v":{"v":0,"d":"€ 0.00"}},{"$f":"SUBTOTAL(109,JulySales[Verkkomaksut])","v":{"v":0,"d":"€ 0.00"}},{"$f":"SUBTOTAL(109,JulySales[PayPal-\nmaksut])","v":{"v":0,"d":"€ 0.00"}},{"$f":"SUBTOTAL(109,JulySales[Luottokortti-\nmaksut])","v":{"v":0,"d":"€ 0.00"}},{"$f":"SUBTOTAL(109,JulySales[Rahti-\nmaksut])","v":{"v":0,"d":"€ 0.00"}},{"$f":"SUBTOTAL(109,JulySales[Rahti-\nmaksut2])","v":{"v":0,"d":"€ 0.00"}},{"$f":"SUBTOTAL(109,JulySales[Myynnin\ntulos])","v":{"v":0,"d":"€ 0.00"}},{"$f":"SUBTOTAL(109,JulySales[Rahdin\ntulos])","v":{"v":0,"d":"€ 0.00"}},{"$f":"SUBTOTAL(109,JulySales[Tulos\nyhteensä])","v":{"v":0,"d":"€ 0.00"}}]
["Tulossuuntaus"]

{"sheet":"Elokuu","index":7,"n_rows":9,"n_cols":14,"rows_kept":9,"merged":[[3,0,4,0],[6,0,7,0]]}
["ELOKUU"]
["Verkkomyynti",null,"uutokauppa-\ntunnus","Nimikkeen","Osto-\nhinta","Myyntihinta","Verkkomaksut","PayPal-\nmaksut","Luottokortti-\nmaksut","Rahti-\nmaksut","Rahti-\nmaksut2","Myynnin\ntulos","Rahdin\ntulos","Tulos\nyhteensä"]
["Vuosi",{"$nulls":11},{"$f":"AugustSales[Rahti-\nmaksut]-AugustSales[Rahti-\nmaksut2]","v":{"v":0,"d":"€ 0.00"}},{"$f":"AugustSales[Myynnin\ntulos]+AugustSales[Rahdin\ntulos]","v":{"v":0,"d":"€ 0.00"}}]
[2012,{"$nulls":11},{"$f":"AugustSales[Rahti-\nmaksut]-AugustSales[Rahti-\nmaksut2]","v":{"v":0,"d":"€ 0.00"}},{"$f":"AugustSales[Myynnin\ntulos]+AugustSales[Rahdin\ntulos]","v":{"v":0,"d":"€ 0.00"}}]
[{"$nulls":12},{"$f":"AugustSales[Rahti-\nmaksut]-AugustSales[Rahti-\nmaksut2]","v":{"v":0,"d":"€ 0.00"}},{"$f":"AugustSales[Myynnin\ntulos]+AugustSales[Rahdin\ntulos]","v":{"v":0,"d":"€ 0.00"}}]
["Tulos yhteensä",{"$nulls":11},{"$f":"AugustSales[Rahti-\nmaksut]-AugustSales[Rahti-\nmaksut2]","v":{"v":0,"d":"€ 0.00"}},{"$f":"AugustSales[Myynnin\ntulos]+AugustSales[Rahdin\ntulos]","v":{"v":0,"d":"€ 0.00"}}]
[{"$f":"AugustSales[[#Totals],[Tulos\nyhteensä]]","v":{"v":0,"d":"€0.00"}},{"$nulls":11},{"$f":"AugustSales[Rahti-\nmaksut]-AugustSales[Rahti-\nmaksut2]","v":{"v":0,"d":"€ 0.00"}},{"$f":"AugustSales[Myynnin\ntulos]+AugustSales[Rahdin\ntulos]","v":{"v":0,"d":"€ 0.00"}}]
[null,null,"  Yhteensä",{"$f":"\"Myydyt nimikkeet: \"&SUBTOTAL(103,AugustSales[Nimikkeen])","v":"Myydyt nimikkeet: 0"},{"$f":"SUBTOTAL(109,AugustSales[Osto-\nhinta])","v":{"v":0,"d":"€ 0.00"}},{"$f":"SUBTOTAL(109,AugustSales[Myyntihinta])","v":{"v":0,"d":"€ 0.00"}},{"$f":"SUBTOTAL(109,AugustSales[Verkkomaksut])","v":{"v":0,"d":"€ 0.00"}},{"$f":"SUBTOTAL(109,AugustSales[PayPal-\nmaksut])","v":{"v":0,"d":"€ 0.00"}},{"$f":"SUBTOTAL(109,AugustSales[Luottokortti-\nmaksut])","v":{"v":0,"d":"€ 0.00"}},{"$f":"SUBTOTAL(109,AugustSales[Rahti-\nmaksut])","v":{"v":0,"d":"€ 0.00"}},{"$f":"SUBTOTAL(109,AugustSales[Rahti-\nmaksut2])","v":{"v":0,"d":"€ 0.00"}},{"$f":"SUBTOTAL(109,AugustSales[Myynnin\ntulos])","v":{"v":0,"d":"€ 0.00"}},{"$f":"SUBTOTAL(109,AugustSales[Rahdin\ntulos])","v":{"v":0,"d":"€ 0.00"}},{"$f":"SUBTOTAL(109,AugustSales[Tulos\nyhteensä])","v":{"v":0,"d":"€ 0.00"}}]
["Tulossuuntaus"]

{"sheet":"Syyskuu","index":8,"n_rows":9,"n_cols":14,"rows_kept":9,"merged":[[3,0,4,0],[6,0,7,0]]}
["SYYSKUU"]
["Verkkomyynti",null,"uutokauppa-\ntunnus","Nimikkeen","Osto-\nhinta","Myyntihinta","Verkkomaksut","PayPal-\nmaksut","Luottokortti-\nmaksut","Rahti-\nmaksut","Rahti-\nmaksut2","Myynnin\ntulos","Rahdin\ntulos","Tulos\nyhteensä"]
["Vuosi",{"$nulls":11},{"$f":"SeptemberSales[Rahti-\nmaksut]-SeptemberSales[Rahti-\nmaksut2]","v":{"v":0,"d":"€ 0.00"}},{"$f":"SeptemberSales[Myynnin\ntulos]+SeptemberSales[Rahdin\ntulos]","v":{"v":0,"d":"€ 0.00"}}]
[2012,{"$nulls":11},{"$f":"SeptemberSales[Rahti-\nmaksut]-SeptemberSales[Rahti-\nmaksut2]","v":{"v":0,"d":"€ 0.00"}},{"$f":"SeptemberSales[Myynnin\ntulos]+SeptemberSales[Rahdin\ntulos]","v":{"v":0,"d":"€ 0.00"}}]
[{"$nulls":12},{"$f":"SeptemberSales[Rahti-\nmaksut]-SeptemberSales[Rahti-\nmaksut2]","v":{"v":0,"d":"€ 0.00"}},{"$f":"SeptemberSales[Myynnin\ntulos]+SeptemberSales[Rahdin\ntulos]","v":{"v":0,"d":"€ 0.00"}}]
["Tulos yhteensä",{"$nulls":11},{"$f":"SeptemberSales[Rahti-\nmaksut]-SeptemberSales[Rahti-\nmaksut2]","v":{"v":0,"d":"€ 0.00"}},{"$f":"SeptemberSales[Myynnin\ntulos]+SeptemberSales[Rahdin\ntulos]","v":{"v":0,"d":"€ 0.00"}}]
[{"$f":"SeptemberSales[[#Totals],[Tulos\nyhteensä]]","v":{"v":0,"d":"€0.00"}},{"$nulls":11},{"$f":"SeptemberSales[Rahti-\nmaksut]-SeptemberSales[Rahti-\nmaksut2]","v":{"v":0,"d":"€ 0.00"}},{"$f":"SeptemberSales[Myynnin\ntulos]+SeptemberSales[Rahdin\ntulos]","v":{"v":0,"d":"€ 0.00"}}]
[null,null,"  Yhteensä",{"$f":"\"Myydyt nimikkeet: \"&SUBTOTAL(103,SeptemberSales[Nimikkeen])","v":"Myydyt nimikkeet: 0"},{"$f":"SUBTOTAL(109,SeptemberSales[Osto-\nhinta])","v":{"v":0,"d":"€ 0.00"}},{"$f":"SUBTOTAL(109,SeptemberSales[Myyntihinta])","v":{"v":0,"d":"€ 0.00"}},{"$f":"SUBTOTAL(109,SeptemberSales[Verkkomaksut])","v":{"v":0,"d":"€ 0.00"}},{"$f":"SUBTOTAL(109,SeptemberSales[PayPal-\nmaksut])","v":{"v":0,"d":"€ 0.00"}},{"$f":"SUBTOTAL(109,SeptemberSales[Luottokortti-\nmaksut])","v":{"v":0,"d":"€ 0.00"}},{"$f":"SUBTOTAL(109,SeptemberSales[Rahti-\nmaksut])","v":{"v":0,"d":"€ 0.00"}},{"$f":"SUBTOTAL(109,SeptemberSales[Rahti-\nmaksut2])","v":{"v":0,"d":"€ 0.00"}},{"$f":"SUBTOTAL(109,SeptemberSales[Myynnin\ntulos])","v":{"v":0,"d":"€ 0.00"}},{"$f":"SUBTOTAL(109,SeptemberSales[Rahdin\ntulos])","v":{"v":0,"d":"€ 0.00"}},{"$f":"SUBTOTAL(109,SeptemberSales[Tulos\nyhteensä])","v":{"v":0,"d":"€ 0.00"}}]
["Tulossuuntaus"]

{"sheet":"Lokakuu","index":9,"n_rows":9,"n_cols":14,"rows_kept":9,"merged":[[3,0,4,0],[6,0,7,0]]}
["LOKAKUU"]
["Verkkomyynti",null,"uutokauppa-\ntunnus","Nimikkeen","Osto-\nhinta","Myyntihinta","Verkkomaksut","PayPal-\nmaksut","Luottokortti-\nmaksut","Rahti-\nmaksut","Rahti-\nmaksut2","Myynnin\ntulos","Rahdin\ntulos","Tulos\nyhteensä"]
["Vuosi",{"$nulls":11},{"$f":"OctoberSales[Rahti-\nmaksut]-OctoberSales[Rahti-\nmaksut2]","v":{"v":0,"d":"€ 0.00"}},{"$f":"OctoberSales[Myynnin\ntulos]+OctoberSales[Rahdin\ntulos]","v":{"v":0,"d":"€ 0.00"}}]
[2012,{"$nulls":11},{"$f":"OctoberSales[Rahti-\nmaksut]-OctoberSales[Rahti-\nmaksut2]","v":{"v":0,"d":"€ 0.00"}},{"$f":"OctoberSales[Myynnin\ntulos]+OctoberSales[Rahdin\ntulos]","v":{"v":0,"d":"€ 0.00"}}]
[{"$nulls":12},{"$f":"OctoberSales[Rahti-\nmaksut]-OctoberSales[Rahti-\nmaksut2]","v":{"v":0,"d":"€ 0.00"}},{"$f":"OctoberSales[Myynnin\ntulos]+OctoberSales[Rahdin\ntulos]","v":{"v":0,"d":"€ 0.00"}}]
["Tulos yhteensä",{"$nulls":11},{"$f":"OctoberSales[Rahti-\nmaksut]-OctoberSales[Rahti-\nmaksut2]","v":{"v":0,"d":"€ 0.00"}},{"$f":"OctoberSales[Myynnin\ntulos]+OctoberSales[Rahdin\ntulos]","v":{"v":0,"d":"€ 0.00"}}]
[{"$f":"OctoberSales[[#Totals],[Tulos\nyhteensä]]","v":{"v":0,"d":"€0.00"}},{"$nulls":11},{"$f":"OctoberSales[Rahti-\nmaksut]-OctoberSales[Rahti-\nmaksut2]","v":{"v":0,"d":"€ 0.00"}},{"$f":"OctoberSales[Myynnin\ntulos]+OctoberSales[Rahdin\ntulos]","v":{"v":0,"d":"€ 0.00"}}]
[null,null,"  Yhteensä",{"$f":"\"Myydyt nimikkeet: \"&SUBTOTAL(103,OctoberSales[Nimikkeen])","v":"Myydyt nimikkeet: 0"},{"$f":"SUBTOTAL(109,OctoberSales[Osto-\nhinta])","v":{"v":0,"d":"€ 0.00"}},{"$f":"SUBTOTAL(109,OctoberSales[Myyntihinta])","v":{"v":0,"d":"€ 0.00"}},{"$f":"SUBTOTAL(109,OctoberSales[Verkkomaksut])","v":{"v":0,"d":"€ 0.00"}},{"$f":"SUBTOTAL(109,OctoberSales[PayPal-\nmaksut])","v":{"v":0,"d":"€ 0.00"}},{"$f":"SUBTOTAL(109,OctoberSales[Luottokortti-\nmaksut])","v":{"v":0,"d":"€ 0.00"}},{"$f":"SUBTOTAL(109,OctoberSales[Rahti-\nmaksut])","v":{"v":0,"d":"€ 0.00"}},{"$f":"SUBTOTAL(109,OctoberSales[Rahti-\nmaksut2])","v":{"v":0,"d":"€ 0.00"}},{"$f":"SUBTOTAL(109,OctoberSales[Myynnin\ntulos])","v":{"v":0,"d":"€ 0.00"}},{"$f":"SUBTOTAL(109,OctoberSales[Rahdin\ntulos])","v":{"v":0,"d":"€ 0.00"}},{"$f":"SUBTOTAL(109,OctoberSales[Tulos\nyhteensä])","v":{"v":0,"d":"€ 0.00"}}]
["Tulossuuntaus"]

{"sheet":"Marraskuu","index":10,"n_rows":9,"n_cols":14,"rows_kept":9,"merged":[[3,0,4,0],[6,0,7,0]]}
["MARRASKUU"]
["Verkkomyynti",null,"uutokauppa-\ntunnus","Nimikkeen","Osto-\nhinta","Myyntihinta","Verkkomaksut","PayPal-\nmaksut","Luottokortti-\nmaksut","Rahti-\nmaksut","Rahti-\nmaksut2","Myynnin\ntulos","Rahdin\ntulos","Tulos\nyhteensä"]
["Vuosi",{"$nulls":11},{"$f":"NovemberSales[Rahti-\nmaksut]-NovemberSales[Rahti-\nmaksut2]","v":{"v":0,"d":"€ 0.00"}},{"$f":"NovemberSales[Myynnin\ntulos]+NovemberSales[Rahdin\ntulos]","v":{"v":0,"d":"€ 0.00"}}]
[2012,{"$nulls":11},{"$f":"NovemberSales[Rahti-\nmaksut]-NovemberSales[Rahti-\nmaksut2]","v":{"v":0,"d":"€ 0.00"}},{"$f":"NovemberSales[Myynnin\ntulos]+NovemberSales[Rahdin\ntulos]","v":{"v":0,"d":"€ 0.00"}}]
[{"$nulls":12},{"$f":"NovemberSales[Rahti-\nmaksut]-NovemberSales[Rahti-\nmaksut2]","v":{"v":0,"d":"€ 0.00"}},{"$f":"NovemberSales[Myynnin\ntulos]+NovemberSales[Rahdin\ntulos]","v":{"v":0,"d":"€ 0.00"}}]
["Tulos yhteensä",{"$nulls":11},{"$f":"NovemberSales[Rahti-\nmaksut]-NovemberSales[Rahti-\nmaksut2]","v":{"v":0,"d":"€ 0.00"}},{"$f":"NovemberSales[Myynnin\ntulos]+NovemberSales[Rahdin\ntulos]","v":{"v":0,"d":"€ 0.00"}}]
[{"$f":"NovemberSales[[#Totals],[Tulos\nyhteensä]]","v":{"v":0,"d":"€0.00"}},{"$nulls":11},{"$f":"NovemberSales[Rahti-\nmaksut]-NovemberSales[Rahti-\nmaksut2]","v":{"v":0,"d":"€ 0.00"}},{"$f":"NovemberSales[Myynnin\ntulos]+NovemberSales[Rahdin\ntulos]","v":{"v":0,"d":"€ 0.00"}}]
[null,null,"  Yhteensä",{"$f":"\"Myydyt nimikkeet: \"&SUBTOTAL(103,NovemberSales[Nimikkeen])","v":"Myydyt nimikkeet: 0"},{"$f":"SUBTOTAL(109,NovemberSales[Osto-\nhinta])","v":{"v":0,"d":"€ 0.00"}},{"$f":"SUBTOTAL(109,NovemberSales[Myyntihinta])","v":{"v":0,"d":"€ 0.00"}},{"$f":"SUBTOTAL(109,NovemberSales[Verkkomaksut])","v":{"v":0,"d":"€ 0.00"}},{"$f":"SUBTOTAL(109,NovemberSales[PayPal-\nmaksut])","v":{"v":0,"d":"€ 0.00"}},{"$f":"SUBTOTAL(109,NovemberSales[Luottokortti-\nmaksut])","v":{"v":0,"d":"€ 0.00"}},{"$f":"SUBTOTAL(109,NovemberSales[Rahti-\nmaksut])","v":{"v":0,"d":"€ 0.00"}},{"$f":"SUBTOTAL(109,NovemberSales[Rahti-\nmaksut2])","v":{"v":0,"d":"€ 0.00"}},{"$f":"SUBTOTAL(109,NovemberSales[Myynnin\ntulos])","v":{"v":0,"d":"€ 0.00"}},{"$f":"SUBTOTAL(109,NovemberSales[Rahdin\ntulos])","v":{"v":0,"d":"€ 0.00"}},{"$f":"SUBTOTAL(109,NovemberSales[Tulos\nyhteensä])","v":{"v":0,"d":"€ 0.00"}}]
["Tulossuuntaus"]

{"sheet":"Joulukuu","index":11,"n_rows":9,"n_cols":14,"rows_kept":9,"merged":[[3,0,4,0],[6,0,7,0]]}
["JOULUKUU"]
["Verkkomyynti",null,"uutokauppa-\ntunnus","Nimikkeen","Osto-\nhinta","Myyntihinta","Verkkomaksut","PayPal-\nmaksut","Luottokortti-\nmaksut","Rahti-\nmaksut","Rahti-\nmaksut2","Myynnin\ntulos","Rahdin\ntulos","Tulos\nyhteensä"]
["Vuosi",{"$nulls":11},{"$f":"DecemberSales[Rahti-\nmaksut]-DecemberSales[Rahti-\nmaksut2]","v":{"v":0,"d":"€ 0.00"}},{"$f":"DecemberSales[Myynnin\ntulos]+DecemberSales[Rahdin\ntulos]","v":{"v":0,"d":"€ 0.00"}}]
[2012,{"$nulls":11},{"$f":"DecemberSales[Rahti-\nmaksut]-DecemberSales[Rahti-\nmaksut2]","v":{"v":0,"d":"€ 0.00"}},{"$f":"DecemberSales[Myynnin\ntulos]+DecemberSales[Rahdin\ntulos]","v":{"v":0,"d":"€ 0.00"}}]
[{"$nulls":12},{"$f":"DecemberSales[Rahti-\nmaksut]-DecemberSales[Rahti-\nmaksut2]","v":{"v":0,"d":"€ 0.00"}},{"$f":"DecemberSales[Myynnin\ntulos]+DecemberSales[Rahdin\ntulos]","v":{"v":0,"d":"€ 0.00"}}]
["Tulos yhteensä",{"$nulls":11},{"$f":"DecemberSales[Rahti-\nmaksut]-DecemberSales[Rahti-\nmaksut2]","v":{"v":0,"d":"€ 0.00"}},{"$f":"DecemberSales[Myynnin\ntulos]+DecemberSales[Rahdin\ntulos]","v":{"v":0,"d":"€ 0.00"}}]
[{"$f":"DecemberSales[[#Totals],[Tulos\nyhteensä]]","v":{"v":0,"d":"€0.00"}},{"$nulls":11},{"$f":"DecemberSales[Rahti-\nmaksut]-DecemberSales[Rahti-\nmaksut2]","v":{"v":0,"d":"€ 0.00"}},{"$f":"DecemberSales[Myynnin\ntulos]+DecemberSales[Rahdin\ntulos]","v":{"v":0,"d":"€ 0.00"}}]
[null,null,"  Yhteensä",{"$f":"\"Myydyt nimikkeet: \"&SUBTOTAL(103,DecemberSales[Nimikkeen])","v":"Myydyt nimikkeet: 0"},{"$f":"SUBTOTAL(109,DecemberSales[Osto-\nhinta])","v":{"v":0,"d":"€ 0.00"}},{"$f":"SUBTOTAL(109,DecemberSales[Myyntihinta])","v":{"v":0,"d":"€ 0.00"}},{"$f":"SUBTOTAL(109,DecemberSales[Verkkomaksut])","v":{"v":0,"d":"€ 0.00"}},{"$f":"SUBTOTAL(109,DecemberSales[PayPal-\nmaksut])","v":{"v":0,"d":"€ 0.00"}},{"$f":"SUBTOTAL(109,DecemberSales[Luottokortti-\nmaksut])","v":{"v":0,"d":"€ 0.00"}},{"$f":"SUBTOTAL(109,DecemberSales[Rahti-\nmaksut])","v":{"v":0,"d":"€ 0.00"}},{"$f":"SUBTOTAL(109,DecemberSales[Rahti-\nmaksut2])","v":{"v":0,"d":"€ 0.00"}},{"$f":"SUBTOTAL(109,DecemberSales[Myynnin\ntulos])","v":{"v":0,"d":"€ 0.00"}},{"$f":"SUBTOTAL(109,DecemberSales[Rahdin\ntulos])","v":{"v":0,"d":"€ 0.00"}},{"$f":"SUBTOTAL(109,DecemberSales[Tulos\nyhteensä])","v":{"v":0,"d":"€ 0.00"}}]
["Tulossuuntaus"]

{"sheet":"Vuoden alusta -yhteenveto","index":12,"n_rows":16,"n_cols":11,"rows_kept":16,"merged":[[3,0,4,0],[6,0,7,0]]}
["VA"]
["Yhteenveto",null,"Tulos",{"$nulls":4},"Tulos vuoden alusta"]
["Vuosi",{"$nulls":6},"Kuukausi","Myynnin tulos","Rahdin tulos","Tulos\nyhteensä"]
[{"$f":"SalesYear","v":2012},{"$nulls":6},"Tammikuu",{"$f":"JanuarySales[[#Totals],[Myynnin\ntulos]]","v":{"v":79.5,"d":"€ 79.50"}},{"$f":"JanuarySales[[#Totals],[Rahdin\ntulos]]","v":{"v":9.5,"d":"€ 9.50"}},{"$f":"IF(AND(YTDSummary[[#This Row],[Myynnin tulos]]<>\"\",YTDSummary[[#This Row],[Rahdin tulos]]<>\"\"),YTDSummary[[#This Row],[Myynnin tulos]]+YTDSummary[[#This Row],[Rahdin tulos]],\"\")","v":{"v":89,"d":"€ 89.00"}}]
[{"$nulls":7},"Helmikuu",{"$f":"FebruarySales[[#Totals],[Myynnin\ntulos]]","v":{"v":212.3,"d":"€ 212.30"}},{"$f":"FebruarySales[[#Totals],[Rahdin\ntulos]]","v":{"v":12.3,"d":"€ 12.30"}},{"$f":"IF(AND(YTDSummary[[#This Row],[Myynnin tulos]]<>\"\",YTDSummary[[#This Row],[Rahdin tulos]]<>\"\"),YTDSummary[[#This Row],[Myynnin tulos]]+YTDSummary[[#This Row],[Rahdin tulos]],\"\")","v":{"v":224.60000000000002,"d":"€ 224.60"}}]
["Kuukausittainen myyntisuuntaus:",{"$nulls":6},"Maaliskuu",{"$f":"MarchSales[[#Totals],[Myynnin\ntulos]]","v":{"v":0,"d":"€ 0.00"}},{"$f":"MarchSales[[#Totals],[Rahdin\ntulos]]","v":{"v":0,"d":"€ 0.00"}},{"$f":"IF(AND(YTDSummary[[#This Row],[Myynnin tulos]]<>\"\",YTDSummary[[#This Row],[Rahdin tulos]]<>\"\"),YTDSummary[[#This Row],[Myynnin tulos]]+YTDSummary[[#This Row],[Rahdin tulos]],\"\")","v":{"v":0,"d":"€ 0.00"}}]
[{"$nulls":7},"Huhtikuu",{"$f":"AprilSales[[#Totals],[Myynnin\ntulos]]","v":{"v":0,"d":"€ 0.00"}},{"$f":"AprilSales[[#Totals],[Rahdin\ntulos]]","v":{"v":0,"d":"€ 0.00"}},{"$f":"IF(AND(YTDSummary[[#This Row],[Myynnin tulos]]<>\"\",YTDSummary[[#This Row],[Rahdin tulos]]<>\"\"),YTDSummary[[#This Row],[Myynnin tulos]]+YTDSummary[[#This Row],[Rahdin tulos]],\"\")","v":{"v":0,"d":"€ 0.00"}}]
[{"$nulls":7},"Toukokuu",{"$f":"MaySales[[#Totals],[Myynnin\ntulos]]","v":{"v":0,"d":"€ 0.00"}},{"$f":"MaySales[[#Totals],[Rahdin\ntulos]]","v":{"v":0,"d":"€ 0.00"}},{"$f":"IF(AND(YTDSummary[[#This Row],[Myynnin tulos]]<>\"\",YTDSummary[[#This Row],[Rahdin tulos]]<>\"\"),YTDSummary[[#This Row],[Myynnin tulos]]+YTDSummary[[#This Row],[Rahdin tulos]],\"\")","v":{"v":0,"d":"€ 0.00"}}]
[{"$nulls":7},"Kesäkuu",{"$f":"JuneSales[[#Totals],[Myynnin\ntulos]]","v":{"v":0,"d":"€ 0.00"}},{"$f":"JuneSales[[#Totals],[Rahdin\ntulos]]","v":{"v":0,"d":"€ 0.00"}},{"$f":"IF(AND(YTDSummary[[#This Row],[Myynnin tulos]]<>\"\",YTDSummary[[#This Row],[Rahdin tulos]]<>\"\"),YTDSummary[[#This Row],[Myynnin tulos]]+YTDSummary[[#This Row],[Rahdin tulos]],\"\")","v":{"v":0,"d":"€ 0.00"}}]
[{"$nulls":7},"Heinäkuu",{"$f":"JulySales[[#Totals],[Myynnin\ntulos]]","v":{"v":0,"d":"€ 0.00"}},{"$f":"JulySales[[#Totals],[Rahdin\ntulos]]","v":{"v":0,"d":"€ 0.00"}},{"$f":"IF(AND(YTDSummary[[#This Row],[Myynnin tulos]]<>\"\",YTDSummary[[#This Row],[Rahdin tulos]]<>\"\"),YTDSummary[[#This Row],[Myynnin tulos]]+YTDSummary[[#This Row],[Rahdin tulos]],\"\")","v":{"v":0,"d":"€ 0.00"}}]
[{"$nulls":7},"Elokuu",{"$f":"AugustSales[[#Totals],[Myynnin\ntulos]]","v":{"v":0,"d":"€ 0.00"}},{"$f":"AugustSales[[#Totals],[Rahdin\ntulos]]","v":{"v":0,"d":"€ 0.00"}},{"$f":"IF(AND(YTDSummary[[#This Row],[Myynnin tulos]]<>\"\",YTDSummary[[#This Row],[Rahdin tulos]]<>\"\"),YTDSummary[[#This Row],[Myynnin tulos]]+YTDSummary[[#This Row],[Rahdin tulos]],\"\")","v":{"v":0,"d":"€ 0.00"}}]
[{"$nulls":7},"Syyskuu",{"$f":"SeptemberSales[[#Totals],[Myynnin\ntulos]]","v":{"v":0,"d":"€ 0.00"}},{"$f":"SeptemberSales[[#Totals],[Rahdin\ntulos]]","v":{"v":0,"d":"€ 0.00"}},{"$f":"IF(AND(YTDSummary[[#This Row],[Myynnin tulos]]<>\"\",YTDSummary[[#This Row],[Rahdin tulos]]<>\"\"),YTDSummary[[#This Row],[Myynnin tulos]]+YTDSummary[[#This Row],[Rahdin tulos]],\"\")","v":{"v":0,"d":"€ 0.00"}}]
[{"$nulls":7},"Lokakuu",{"$f":"OctoberSales[[#Totals],[Myynnin\ntulos]]","v":{"v":0,"d":"€ 0.00"}},{"$f":"OctoberSales[[#Totals],[Rahdin\ntulos]]","v":{"v":0,"d":"€ 0.00"}},{"$f":"IF(AND(YTDSummary[[#This Row],[Myynnin tulos]]<>\"\",YTDSummary[[#This Row],[Rahdin tulos]]<>\"\"),YTDSummary[[#This Row],[Myynnin tulos]]+YTDSummary[[#This Row],[Rahdin tulos]],\"\")","v":{"v":0,"d":"€ 0.00"}}]
[{"$nulls":7},"Marraskuu",{"$f":"NovemberSales[[#Totals],[Myynnin\ntulos]]","v":{"v":0,"d":"€ 0.00"}},{"$f":"NovemberSales[[#Totals],[Rahdin\ntulos]]","v":{"v":0,"d":"€ 0.00"}},{"$f":"IF(AND(YTDSummary[[#This Row],[Myynnin tulos]]<>\"\",YTDSummary[[#This Row],[Rahdin tulos]]<>\"\"),YTDSummary[[#This Row],[Myynnin tulos]]+YTDSummary[[#This Row],[Rahdin tulos]],\"\")","v":{"v":0,"d":"€ 0.00"}}]
[{"$nulls":7},"Joulukuu",{"$f":"DecemberSales[[#Totals],[Myynnin\ntulos]]","v":{"v":0,"d":"€ 0.00"}},{"$f":"DecemberSales[[#Totals],[Rahdin\ntulos]]","v":{"v":0,"d":"€ 0.00"}},{"$f":"IF(AND(YTDSummary[[#This Row],[Myynnin tulos]]<>\"\",YTDSummary[[#This Row],[Rahdin tulos]]<>\"\"),YTDSummary[[#This Row],[Myynnin tulos]]+YTDSummary[[#This Row],[Rahdin tulos]],\"\")","v":{"v":0,"d":"€ 0.00"}}]
[{"$nulls":7},"Summat",{"$f":"SUBTOTAL(109,YTDSummary[Myynnin tulos])","v":{"v":291.8,"d":"€ 291.80"}},{"$f":"SUBTOTAL(109,YTDSummary[Rahdin tulos])","v":{"v":21.8,"d":"€ 21.80"}},{"$f":"SUBTOTAL(109,YTDSummary[Tulos\nyhteensä])","v":{"v":313.6,"d":"€ 313.60"}}]